fUST/lending_fUST_20240118
["ID","MTS","AMOUNT","RATE_DAILY","PERIOD"]
[311960699,1705518644797,-500.0,0.00022465,2]
[311960700,1705518644806,-500.0,0.00022465,2]
[311960702,1705518644815,-500.0,0.00022465,2]
[311960709,1705518644904,-619.44326316,0.00022465,2]
[311960710,1705518644913,-500.0,0.00022465,2]
[311960711,1705518644922,-500.0,0.00022465,2]
[311960712,1705518644931,-500.0,0.00022465,2]
[311960713,1705518644940,-500.0,0.00022465,2]
[311960714,1705518644949,-500.0,0.00022465,2]
[311960715,1705518644959,-619.68,0.00022465,2]
[311960716,1705518644969,-500.0,0.00022465,2]
[311960717,1705518644978,-500.0,0.00022465,2]
[311960718,1705518644987,-500.0,0.00022465,2]
[311960719,1705518644996,-500.0,0.00022465,2]
[311960720,1705518645005,-500.0,0.00022465,2]
[311960721,1705518645014,-500.0,0.00022465,2]
[311960722,1705518645023,-500.0,0.00022465,2]
[311960723,1705518645033,-9392.2,0.00022465,2]
[311960724,1705518645042,-1815.95,0.00022465,2]
[311960725,1705518645051,-2427.15,0.00022465,2]
[311960726,1705518645061,-500.0,0.00022465,2]
[311960727,1705518645070,-500.0,0.00022465,2]
[311960728,1705518645080,-702.12,0.00022465,2]
[311960729,1705518645090,-1111.34,0.00022465,2]
[311960730,1705518645099,-185.60487652,0.00022465,2]
[311960731,1705518645109,-1618.93,0.00022465,2]
[311960732,1705518645118,-500.0,0.00022465,2]
[311960733,1705518645128,-500.0,0.00022465,2]
[311960734,1705518645137,-500.0,0.00022465,2]
[311960735,1705518645147,-500.0,0.00022465,2]
[311960736,1705518645157,-500.0,0.00022465,2]
[311960737,1705518645166,-500.0,0.00022465,2]
[311960738,1705518645175,-3319.44,0.00022465,2]
[311960739,1705518645185,-500.0,0.00022465,2]
[311960740,1705518645196,-500.0,0.00022465,2]
[311960741,1705518645206,-500.0,0.00022465,2]
[311960742,1705518645215,-500.0,0.00022465,2]
[311960743,1705518645226,-500.0,0.00022465,2]
[311960744,1705518645235,-500.0,0.00022465,2]
[311960745,1705518645244,-500.0,0.00022465,2]
[311960746,1705518645253,-500.0,0.00022465,2]
[311960747,1705518645262,-500.0,0.00022465,2]
[311960748,1705518645274,-2350.29,0.00022465,2]
[311960749,1705518645283,-500.0,0.00022465,2]
[311960750,1705518645293,-500.0,0.00022465,2]
[311960751,1705518645302,-500.0,0.00022465,2]
[311960752,1705518645312,-1333.89,0.00022465,2]
[311960753,1705518645321,-500.0,0.00022465,2]
[311960754,1705518645331,-155.14101314,0.000226,2]
[311960755,1705518645341,-1736.89858519,0.000226,2]
[311960756,1705518645353,-370.8,0.000226,2]
[311960757,1705518645362,-551.62,0.000226,2]
[311960758,1705518645371,-551.62,0.00022601,2]
[311960759,1705518645381,-151.0,0.00022602,2]
[311960760,1705518645390,-151.0,0.00022602,2]
[311960761,1705518645399,-515.895159,0.00022602,2]
[311960762,1705518645409,-515.895159,0.00022602,2]
[311960763,1705518645419,-573.52,0.00022602,2]
[311960764,1705518645429,-500.0,0.00022602,2]
[311960765,1705518645438,-500.0,0.00022602,2]
[311960766,1705518645447,-500.0,0.00022602,2]
[311960767,1705518645457,-500.0,0.00022602,2]
[311960768,1705518645466,-500.0,0.00022602,2]
[311960769,1705518645476,-500.0,0.00022602,2]
[311960770,1705518645486,-500.0,0.00022602,2]
[311960771,1705518645495,-500.0,0.00022602,2]
[311960772,1705518645505,-500.0,0.00022602,2]
[311960773,1705518645514,-219.09025803,0.00022602,2]
[311960774,1705518645523,-619.68,0.00022602,2]
[311960775,1705518645533,-500.0,0.00022602,2]
[311960776,1705518645543,-500.0,0.00022602,2]
[311960777,1705518645552,-500.0,0.00022602,2]
[311960778,1705518645561,-500.0,0.00022602,2]
[311960779,1705518645571,-500.0,0.00022602,2]
[311960780,1705518645580,-500.0,0.00022602,2]
[311960781,1705518645589,-500.0,0.00022602,2]
[311960782,1705518645598,-9392.2,0.00022602,2]
[311960783,1705518645608,-1815.95,0.00022602,2]
[311960784,1705518645617,-2427.15,0.00022602,2]
[311960785,1705518645626,-500.0,0.00022602,2]
[311960786,1705518645636,-500.0,0.00022602,2]
[311960787,1705518645646,-702.12,0.00022602,2]
[311960788,1705518645655,-1111.34,0.00022602,2]
[311960789,1705518645664,-1618.93,0.00022602,2]
[311960790,1705518645673,-500.0,0.00022602,2]
[311960791,1705518645682,-500.0,0.00022602,2]
[311960792,1705518645692,-500.0,0.00022602,2]
[311960793,1705518645701,-3319.44,0.00022602,2]
[311960794,1705518645710,-500.0,0.00022602,2]
[311960795,1705518645720,-500.0,0.00022602,2]
[311960796,1705518645729,-500.0,0.00022602,2]
[311960797,1705518645738,-500.0,0.00022602,2]
[311960798,1705518645747,-500.0,0.00022602,2]
[311960799,1705518645756,-500.0,0.00022602,2]
[311960801,1705518645765,-500.0,0.00022602,2]
[311960803,1705518645774,-500.0,0.00022602,2]
[311960806,1705518645783,-500.0,0.00022602,2]
[311960808,1705518645792,-2350.29,0.00022602,2]
[311960809,1705518645802,-500.0,0.00022602,2]
[311960810,1705518645811,-500.0,0.00022602,2]
[311960811,1705518645820,-1333.89,0.00022602,2]
[311960812,1705518645830,-500.0,0.00022602,2]
[311960813,1705518645839,-551.62,0.00022676,2]
[311960814,1705518645849,-551.62,0.00022676,2]
[311960815,1705518645858,-190.096699,0.00022677,2]
[311960816,1705518645867,-190.096699,0.00022677,2]
[311960818,1705518645876,-547.62151739,0.00022677,2]
[311960819,1705518645885,-49612.54469343,0.00022677,2]
[311960827,1705518645973,-4429.5703663,0.00022677,2]
[311960829,1705518645985,-8780.3298364,0.00022677,2]
[311960830,1705518645994,-857.5614279,0.00022677,2]
[311960831,1705518646003,-5000.0,0.00022677,2]
[311960832,1705518646011,-8341.70488266,0.00022684,2]
[311960834,1705518646021,-551.62,0.00022738,2]
[311960835,1705518646030,-151.0,0.00022738,2]
[311960837,1705518646039,-151.0,0.00022739,2]
[311960839,1705518646047,-515.895159,0.00022739,2]
[311960841,1705518646057,-515.895159,0.00022739,2]
[311960842,1705518646067,-500.0,0.00022739,2]
[311960843,1705518646076,-500.0,0.00022739,2]
[311960844,1705518646086,-500.0,0.00022739,2]
[311960845,1705518646095,-500.0,0.00022739,2]
[311960847,1705518646104,-412.10082968,0.00022739,2]
[311960849,1705518646114,-500.0,0.00022739,2]
[311960851,1705518646123,-229.8084829,0.00022739,2]
[311960852,1705518646132,-500.0,0.00022739,2]
[311960853,1705518646141,-500.0,0.00022739,2]
[311960854,1705518646151,-619.68,0.00022739,2]
[311960856,1705518646160,-500.0,0.00022739,2]
[311960857,1705518646169,-500.0,0.00022739,2]
[311960859,1705518646178,-500.0,0.00022739,2]
[311960860,1705518646187,-500.0,0.00022739,2]
[311960861,1705518646198,-500.0,0.00022739,2]
[311960862,1705518646207,-500.0,0.00022739,2]
[311960863,1705518646216,-169.74761414,0.00022739,2]
[311960864,1705518646433,-1238.13,0.00021907,3]
[311960865,1705518646442,-61.87,0.00021917,2]
[311960866,1705518646454,-438.13,0.00021917,2]
[311960867,1705518646463,-500.0,0.00021917,2]
[311960868,1705518646472,-63.53693168,0.00022739,2]
[311960869,1705518646483,-862.80915035,0.00022739,2]
[311960870,1705518646495,-359.04862008,0.00022739,2]
[311960871,1705518646506,-389.29581536,0.00022739,2]
[311960872,1705518646517,-1596.79825062,0.00022739,2]
[311960873,1705518646528,-6120.71123191,0.00022739,2]
[311960874,1705518646537,-1815.95,0.00022739,2]
[311960875,1705518646546,-2427.15,0.00022739,2]
[311960876,1705518646555,-307.84833146,0.00022739,2]
[311960877,1705518646564,-500.0,0.00022739,2]
[311960878,1705518646573,-702.12,0.00022739,2]
[311960879,1705518646583,-1111.34,0.00022739,2]
[311960880,1705518646592,-1618.93,0.00022739,2]
[311960881,1705518646601,-500.0,0.00022739,2]
[311960882,1705518646610,-500.0,0.00022739,2]
[311960883,1705518646619,-500.0,0.00022739,2]
[311960884,1705518646627,-3319.44,0.00022739,2]
[311960885,1705518646636,-500.0,0.00022739,2]
[311960886,1705518646645,-500.0,0.00022739,2]
[311960887,1705518646655,-500.0,0.00022739,2]
[311960888,1705518646664,-500.0,0.00022739,2]
[311960889,1705518646673,-500.0,0.00022739,2]
[311960890,1705518646682,-500.0,0.00022739,2]
[311960891,1705518646691,-500.0,0.00022739,2]
[311960892,1705518646700,-500.0,0.00022739,2]
[311960893,1705518646710,-2350.29,0.00022739,2]
[311960894,1705518646719,-500.0,0.00022739,2]
[311960895,1705518646728,-500.0,0.00022739,2]
[311960896,1705518646738,-1333.89,0.00022739,2]
[311960897,1705518646747,-500.0,0.00022739,2]
[311960898,1705518646756,-158.38858666,0.00022775,2]
[311960899,1705518646765,-551.62,0.00022875,2]
[311960900,1705518646774,-500.0,0.00022876,2]
[311960901,1705518646784,-500.0,0.00022876,2]
[311960902,1705518646793,-500.0,0.00022876,2]
[311960903,1705518646802,-500.0,0.00022876,2]
[311960904,1705518646812,-500.0,0.00022876,2]
[311960905,1705518646821,-449.62,0.00022876,2]
[311960906,1705518646830,-500.0,0.00022876,2]
[311960907,1705518646839,-619.68,0.00022876,2]
[311960908,1705518646848,-500.0,0.00022876,2]
[311960909,1705518646857,-500.0,0.00022876,2]
[311960910,1705518646866,-500.0,0.00022876,2]
[311960911,1705518646875,-500.0,0.00022876,2]
[311960912,1705518646884,-628.21,0.00022876,2]
[311960913,1705518646894,-500.0,0.00022876,2]
[311960914,1705518646903,-9392.2,0.00022876,2]
[311960915,1705518646912,-1815.95,0.00022876,2]
[311960916,1705518646921,-2427.15,0.00022876,2]
[311960917,1705518646929,-500.0,0.00022876,2]
[311960918,1705518646938,-702.12,0.00022876,2]
[311960919,1705518646948,-1111.34,0.00022876,2]
[311960920,1705518646957,-1618.93,0.00022876,2]
[311960921,1705518646966,-500.0,0.00022876,2]
[311960922,1705518646975,-500.0,0.00022876,2]
[311960923,1705518646984,-500.0,0.00022876,2]
[311960924,1705518646993,-3319.44,0.00022876,2]
[311960925,1705518647002,-158.85,0.00022876,2]
[311960926,1705518647010,-637.22712996,0.00022876,2]
[311960927,1705518647019,-500.0,0.00022876,2]
[311960928,1705518647028,-500.0,0.00022876,2]
[311960929,1705518647037,-500.0,0.00022876,2]
[311960930,1705518647047,-500.0,0.00022876,2]
[311960931,1705518647056,-500.0,0.00022876,2]
[311960932,1705518647065,-480.03172656,0.00022876,2]
[311960933,1705518647077,-19.96827344,0.00022876,2]
[311960934,1705518647086,-2350.29,0.00022876,2]
[311960935,1705518647095,-500.0,0.00022876,2]
[311960936,1705518647105,-500.0,0.00022876,2]
[311960937,1705518647114,-1333.89,0.00022876,2]
[311960938,1705518647123,-500.0,0.00022876,2]
[311960939,1705518647133,-166.666666,0.00022944,2]
[311960940,1705518647142,-551.62,0.00023012,2]
[311960941,1705518647151,-190.096699,0.00023013,2]
[311960942,1705518647160,-190.096699,0.00023013,2]
[311960943,1705518647169,-500.0,0.00023013,2]
[311960944,1705518647179,-500.0,0.00023013,2]
[311960945,1705518647188,-413.6,0.00023013,2]
[311960946,1705518647200,-500.0,0.00023013,2]
[311960947,1705518647209,-500.0,0.00023013,2]
[311960948,1705518647219,-500.0,0.00023013,2]
[311960949,1705518647228,-619.68,0.00023013,2]
[311960950,1705518647239,-500.0,0.00023013,2]
[311960951,1705518647248,-500.0,0.00023013,2]
[311960952,1705518647257,-500.0,0.00023013,2]
[311960953,1705518647267,-500.0,0.00023013,2]
[311960954,1705518647277,-500.0,0.00023013,2]
[311960955,1705518647286,-9392.2,0.00023013,2]
[311960956,1705518647296,-1815.95,0.00023013,2]
[311960957,1705518647305,-2427.15,0.00023013,2]
[311960958,1705518647314,-500.0,0.00023013,2]
[311960959,1705518647324,-702.12,0.00023013,2]
[311960960,1705518647333,-1111.34,0.00023013,2]
[311960961,1705518647342,-1618.93,0.00023013,2]
[311960962,1705518647352,-500.0,0.00023013,2]
[311960963,1705518647361,-500.0,0.00023013,2]
[311960964,1705518647370,-500.0,0.00023013,2]
[311960965,1705518647379,-3319.44,0.00023013,2]
[311960966,1705518647388,-500.0,0.00023013,2]
[311960967,1705518647397,-500.0,0.00023013,2]
[311960968,1705518647406,-224.36,0.00023013,2]
[311960969,1705518647414,-500.0,0.00023013,2]
[311960970,1705518647423,-153.36690984,0.00023013,2]
[311960971,1705518647435,-4.41936984,0.00023013,2]
[311960972,1705518647444,-500.0,0.00023013,2]
[311960973,1705518647454,-2350.29,0.00023013,2]
[311960974,1705518647463,-438.32063015,0.00023013,2]
[311960975,1705518647594,-300.0,0.00020593,2]
[311960976,1705518647603,-135.34359155,0.00021917,2]
[311960982,1705518959195,209.17734912,0.0003,120]
[311961049,1705519384168,-219.83561488,0.00019249,2]
[311961050,1705519384318,-4.48644112,0.00019249,2]
[311961086,1705519635087,-154.95351395,0.00020038,4]
[311961087,1705519635108,-154.95351395,0.00020039,2]
[311961088,1705519635131,-175.60029112,0.00020053,2]
[311961089,1705519635153,-454.68388981,0.0002015,2]
[311961090,1705519635173,-907.01879117,0.00020151,2]
[311961091,1705519652378,154.95351395,0.00018136,3]
[311961092,1705519654089,-155.83937212,0.00020131,2]
[311961093,1705519654111,-1541.36483086,0.00020151,2]
[311961094,1705519665279,-12000.0,0.00019535,2]
[311961095,1705519665430,-12000.0,0.00019535,2]
[311961096,1705519665544,-900.0,0.00019535,2]
[311961097,1705519670375,154.95351395,0.00018136,3]
[311961114,1705519740879,3215.63352838,0.00018136,2]
[311961115,1705519749094,-154.95351395,0.00018898,3]
[311961116,1705519749114,-334.82848718,0.0002015,2]
[311961117,1705519749134,-334.82848718,0.0002015,2]
[311961118,1705519749154,-11260.21674165,0.00020151,2]
[311961119,1705519749174,-5486.87403072,0.00020152,2]
[311961120,1705519749196,-1018.6437214,0.00020152,2]
[311961121,1705519749219,-155.14101314,0.00020636,2]
[311961122,1705519749239,-1736.89858519,0.00020636,2]
[311961123,1705519749260,-1249.38040195,0.00020637,2]
[311961124,1705519749282,-752.57456389,0.00020639,2]
[311961125,1705519760989,3220.60798275,0.00018136,2]
[311961126,1705519767093,-154.95351395,0.00018898,3]
[311961127,1705519767113,-95.04648605,0.00020639,2]
[311961276,1705519839385,-154.95351395,0.00018898,3]
[311961279,1705519839399,-22.81245038,0.00020639,2]
[311961281,1705519839412,-1537.23872732,0.00020999,2]
[311961283,1705519839425,-327.18048,0.00021,2]
[311961286,1705519839438,-23059.69433249,0.00021,2]
[311961288,1705519839451,-759.5,0.00021807,3]
[311961291,1705519839463,-759.5,0.00021807,3]
[311961293,1705519839476,-759.5,0.00021807,3]
[311961295,1705519839488,-759.5,0.00021807,3]
[311961298,1705519839500,-264.80820677,0.00021815,2]
[311961299,1705519839510,-155.08684864,0.00021815,2]
[311961302,1705519839520,-738.92721496,0.00021815,2]
[311961304,1705519839530,-7934.8034329,0.00021815,2]
[311961306,1705519839541,-155.36019494,0.00021816,2]
[311961308,1705519839553,-5134.71110403,0.00021816,2]
[311961310,1705519839564,-601.48603607,0.00021816,2]
[311961313,1705519839575,-260955.92771434,0.00021817,2]
[311961315,1705519839586,-957.12041936,0.00021915,2]
[311961317,1705519839598,-334.79233795,0.00021917,2]
[311961320,1705519839613,-638.48739459,0.00021917,2]
[311961322,1705519839624,-335.28718542,0.00021917,2]
[311961324,1705519839634,-500.0,0.00021917,2]
[311961326,1705519839644,-500.0,0.00021917,2]
[311961328,1705519839654,-500.0,0.00021917,2]
[311961330,1705519839665,-510.93305665,0.00021917,2]
[311961333,1705519839676,-420.60770039,0.00021917,2]
[311961335,1705519839686,-500.0,0.00021917,2]
[311961337,1705519839697,-500.0,0.00021917,2]
[311961339,1705519839707,-500.0,0.00021917,2]
[311961341,1705519839718,-500.0,0.00021917,2]
[311961344,1705519839729,-501.3256704,0.00021917,2]
[311961346,1705519839739,-500.0,0.00021917,2]
[311961348,1705519839749,-500.0,0.00021917,2]
[311961350,1705519839760,-500.0,0.00021917,2]
[311961352,1705519839770,-225.46911807,0.00021917,2]
[311961354,1705519839780,-421.13330795,0.00021917,2]
[311961356,1705519839791,-204.91525051,0.00021917,2]
[311961359,1705519839802,-500.0,0.00021917,2]
[311961361,1705519839813,-500.0,0.00021917,2]
[311961363,1705519839824,-500.92123662,0.00021917,2]
[311961365,1705519839836,-500.0,0.00021917,2]
[311961367,1705519839846,-500.0,0.00021917,2]
[311961370,1705519839859,-500.0,0.00021917,2]
[311961372,1705519839869,-500.0,0.00021917,2]
[311961374,1705519839880,-500.0,0.00021917,2]
[311961376,1705519839890,-429.10453152,0.00021917,2]
[311961378,1705519839904,-500.0,0.00021917,2]
[311961380,1705519839914,-500.0,0.00021917,2]
[311961383,1705519839925,-500.0,0.00021917,2]
[311961385,1705519839936,-411.87526657,0.00021917,2]
[311961387,1705519839946,-500.0,0.00021917,2]
[311961389,1705519839957,-500.0,0.00021917,2]
[311961391,1705519839969,-500.0,0.00021917,2]
[311961394,1705519839984,-576.17329313,0.00021917,2]
[311961396,1705519839996,-195.67546519,0.00021917,2]
[311961398,1705519840007,-500.0,0.00021917,2]
[311961400,1705519840017,-500.0,0.00021917,2]
[311961402,1705519840028,-500.0,0.00021917,2]
[311961405,1705519840039,-500.0,0.00021917,2]
[311961408,1705519840049,-500.0,0.00021917,2]
[311961410,1705519840061,-500.0,0.00021917,2]
[311961424,1705519840188,-500.0,0.00021917,2]
[311961426,1705519840197,-503.01602422,0.00021917,2]
[311961428,1705519840207,-500.0,0.00021917,2]
[311961430,1705519840216,-500.0,0.00021917,2]
[311961432,1705519840225,-500.0,0.00021917,2]
[311961434,1705519840234,-500.0,0.00021917,2]
[311961436,1705519840243,-500.0,0.00021917,2]
[311961438,1705519840252,-500.0,0.00021917,2]
[311961440,1705519840261,-500.0,0.00021917,2]
[311961442,1705519840270,-500.0,0.00021917,2]
[311961444,1705519840279,-500.0,0.00021917,2]
[311961446,1705519840289,-500.0,0.00021917,2]
[311961448,1705519840297,-500.0,0.00021917,2]
[311961450,1705519840307,-500.0,0.00021917,2]
[311961452,1705519840315,-270.73690384,0.00021917,2]
[311961454,1705519840325,-288.11097916,0.00021917,2]
[311961456,1705519840338,-500.0,0.00021917,2]
[311961458,1705519840347,-500.0,0.00021917,2]
[311961460,1705519840359,-500.0,0.00021917,2]
[311961462,1705519840369,-500.0,0.00021917,2]
[311961464,1705519840377,-500.0,0.00021917,2]
[311961466,1705519840386,-500.0,0.00021917,2]
[311961468,1705519840394,-500.0,0.00021917,2]
[311961470,1705519840404,-500.0,0.00021917,2]
[311961472,1705519840414,-500.0,0.00021917,2]
[311961474,1705519840423,-500.0,0.00021917,2]
[311961476,1705519840432,-500.0,0.00021917,2]
[311961477,1705519840441,-500.0,0.00021917,2]
[311961478,1705519840450,-500.0,0.00021917,2]
[311961479,1705519840459,-500.0,0.00021917,2]
[311961480,1705519840468,-500.0,0.00021917,2]
[311961481,1705519840477,-500.0,0.00021917,2]
[311961482,1705519840486,-500.0,0.00021917,2]
[311961483,1705519840496,-500.0,0.00021917,2]
[311961484,1705519840506,-502.51534222,0.00021917,2]
[311961486,1705519840515,-500.0,0.00021917,2]
[311961488,1705519840525,-500.0,0.00021917,2]
[311961489,1705519840534,-500.0,0.00021917,2]
[311961491,1705519840544,-500.0,0.00021917,2]
[311961492,1705519840553,-547.35,0.00021917,2]
[311961494,1705519840562,-500.0,0.00021917,2]
[311961495,1705519840571,-500.0,0.00021917,2]
[311961497,1705519840580,-500.0,0.00021917,2]
[311961498,1705519840590,-500.0,0.00021917,2]
[311961500,1705519840599,-500.0,0.00021917,2]
[311961501,1705519840611,-500.0,0.00021917,2]
[311961503,1705519840620,-500.0,0.00021917,2]
[311961505,1705519840629,-395.89549653,0.00021917,2]
[311961506,1705519840638,-500.0,0.00021917,2]
[311961509,1705519840646,-500.0,0.00021917,2]
[311961510,1705519840656,-519.9641741,0.00021917,2]
[311961513,1705519840665,-500.0,0.00021917,2]
[311961515,1705519840674,-500.0,0.00021917,2]
[311961519,1705519840683,-500.0,0.00021917,2]
[311961521,1705519840692,-500.0,0.00021917,2]
[311961523,1705519840701,-500.0,0.00021917,2]
[311961525,1705519840710,-560.31477797,0.00021917,2]
[311961526,1705519840720,-500.0,0.00021917,2]
[311961527,1705519840729,-500.0,0.00021917,2]
[311961529,1705519840738,-500.56900131,0.00021917,2]
[311961531,1705519840748,-500.0,0.00021917,2]
[311961532,1705519840757,-500.0,0.00021917,2]
[311961534,1705519840766,-500.0,0.00021917,2]
[311961536,1705519840775,-500.0,0.00021917,2]
[311961537,1705519840785,-500.0,0.00021917,2]
[311961539,1705519840795,-500.0,0.00021917,2]
[311961541,1705519840804,-500.0,0.00021917,2]
[311961542,1705519840814,-500.0,0.00021917,2]
[311961544,1705519840823,-500.0,0.00021917,2]
[311961546,1705519840832,-472.93631621,0.00021917,2]
[311961547,1705519840841,-500.0,0.00021917,2]
[311961549,1705519840850,-500.0,0.00021917,2]
[311961550,1705519840862,-500.0,0.00021917,2]
[311961552,1705519840871,-500.0,0.00021917,2]
[311961554,1705519840879,-500.0,0.00021917,2]
[311961556,1705519840888,-500.0,0.00021917,2]
[311961559,1705519840897,-500.0,0.00021917,2]
[311961562,1705519840906,-500.0,0.00021917,2]
[311961565,1705519840915,-500.0,0.00021917,2]
[311961568,1705519840924,-590.22403007,0.00021917,2]
[311961571,1705519840932,-513.83673442,0.00021917,2]
[311961574,1705519840941,-500.0,0.00021917,2]
[311961577,1705519840950,-500.0,0.00021917,2]
[311961579,1705519840959,-500.0,0.00021917,2]
[311961581,1705519840968,-583.20336943,0.00021917,2]
[311961583,1705519840977,-500.0,0.00021917,2]
[311961585,1705519840986,-500.0,0.00021917,2]
[311961587,1705519840995,-397.88999285,0.00021917,2]
[311961589,1705519841004,-500.0,0.00021917,2]
[311961591,1705519841013,-500.0,0.00021917,2]
[311961593,1705519841023,-500.0,0.00021917,2]
[311961595,1705519841032,-500.0,0.00021917,2]
[311961597,1705519841041,-500.0,0.00021917,2]
[311961599,1705519841050,-500.0,0.00021917,2]
[311961601,1705519841059,-500.0,0.00021917,2]
[311961603,1705519841068,-500.0,0.00021917,2]
[311961605,1705519841077,-500.0,0.00021917,2]
[311961607,1705519841086,-500.0,0.00021917,2]
[311961609,1705519841095,-500.0,0.00021917,2]
[311961611,1705519841105,-500.0,0.00021917,2]
[311961613,1705519841114,-500.0,0.00021917,2]
[311961615,1705519841122,-500.0,0.00021917,2]
[311961617,1705519841132,-500.0,0.00021917,2]
[311961619,1705519841142,-500.0,0.00021917,2]
[311961621,1705519841151,-500.0,0.00021917,2]
[311961623,1705519841159,-501.70820656,0.00021917,5]
[311961625,1705519841168,-500.0,0.00021917,2]
[311961627,1705519841177,-1322.0,0.00021917,2]
[311961629,1705519841186,-500.0,0.00021917,2]
[311961631,1705519841195,-500.0,0.00021917,2]
[311961633,1705519841204,-500.0,0.00021917,2]
[311961635,1705519841213,-500.0,0.00021917,2]
[311961637,1705519841222,-209.73633126,0.00021917,2]
[311961639,1705519841231,-500.0,0.00021917,2]
[311961641,1705519841240,-500.0,0.00021917,2]
[311961643,1705519841249,-517.18768851,0.00021917,2]
[311961645,1705519841259,-500.0,0.00021917,2]
[311961647,1705519841268,-500.0,0.00021917,2]
[311961649,1705519841277,-574.42045533,0.00021917,2]
[311961651,1705519841286,-500.0,0.00021917,2]
[311961653,1705519841295,-478.85011104,0.00021917,2]
[311961654,1705519841305,-10074.98,0.00021917,2]
[311961656,1705519841314,-500.0,0.00021917,2]
[311961658,1705519841323,-500.0,0.00021917,2]
[311961660,1705519841335,-500.0,0.00021917,2]
[311961663,1705519841345,-500.0,0.00021917,2]
[311961664,1705519841355,-502.91683953,0.00021917,2]
[311961667,1705519841365,-215.86312279,0.00021917,2]
[311961668,1705519841375,-519.27138741,0.00021917,2]
[311961671,1705519841385,-500.0,0.00021917,2]
[311961673,1705519841394,-222.61017779,0.00021917,2]
[311961675,1705519841404,-500.0,0.00021917,2]
[311961677,1705519841414,-500.0,0.00021917,2]
[311961679,1705519841424,-1850.51,0.00021917,2]
[311961681,1705519841433,-500.0,0.00021917,2]
[311961683,1705519841442,-500.0,0.00021917,2]
[311961684,1705519841451,-500.0,0.00021917,2]
[311961686,1705519841460,-500.0,0.00021917,2]
[311961688,1705519841469,-500.0,0.00021917,2]
[311961691,1705519841479,-500.0,0.00021917,2]
[311961693,1705519841489,-500.0,0.00021917,2]
[311961695,1705519841499,-2324.16,0.00021917,2]
[311961697,1705519841508,-500.0,0.00021917,2]
[311961699,1705519841517,-500.0,0.00021917,2]
[311961700,1705519841526,-500.0,0.00021917,2]
[311961702,1705519841536,-500.0,0.00021917,2]
[311961705,1705519841545,-500.0,0.00021917,2]
[311961706,1705519841554,-500.0,0.00021917,2]
[311961709,1705519841564,-500.0,0.00021917,2]
[311961711,1705519841573,-500.0,0.00021917,2]
[311961712,1705519841582,-607.49,0.00021917,2]
[311961715,1705519841591,-155.65120151,0.00021917,2]
[311961716,1705519841600,-1970.92,0.00021917,2]
[311961719,1705519841611,-1246.83,0.00021917,2]
[311961721,1705519841620,-500.0,0.00021917,2]
[311961723,1705519841629,-263.46749869,0.00021917,2]
[311961725,1705519841638,-500.0,0.00021917,2]
[311961726,1705519841648,-500.0,0.00021917,2]
[311961728,1705519841657,-500.0,0.00021917,2]
[311961730,1705519841666,-500.0,0.00021917,2]
[311961733,1705519841675,-500.0,0.00021917,2]
[311961734,1705519841684,-3916.35,0.00021917,2]